bitfinex-derivatives/quotes_BTCF0:USTF0_20241213
["timestamp","ask_amount","ask_price","bid_price","bid_amount"]
[1734054710133,0.43006593,99246.0,99235.0,0.04110755]
[1734054710331,0.43006593,99246.0,99229.0,0.0319]
[1734054710332,0.3293189,99246.0,99236.0,0.01574055]
[1734054710546,0.3293189,99246.0,99245.0,0.050362]
[1734054710843,0.3293189,99246.0,99245.0,0.06610496]
[1734054711234,0.050367,99237.0,99232.0,0.050369]
[1734054711437,0.3608,99237.0,99235.0,0.050367]
[1734054711837,0.002,99246.0,99235.0,0.050367]
[1734054712043,0.002,99246.0,99245.0,0.050362]
[1734054712540,0.001,99246.0,99245.0,0.050362]
[1734054713036,0.003,99246.0,99245.0,0.050362]
[1734054713254,0.003,99246.0,99245.0,1.490362]
[1734054713552,0.002,99246.0,99245.0,1.490362]
[1734054713852,0.002,99246.0,99245.0,0.050362]
[1734054714043,0.10276023,99246.0,99245.0,0.050362]
[1734054714554,0.050363,99244.0,99235.0,0.050367]
[1734054714748,0.3608,99237.0,99235.0,0.050367]
[1734054715153,0.10076023,99236.0,99235.0,0.050367]
[1734054716147,0.3608,99237.0,99235.0,0.050367]
[1734054718458,0.001,99236.0,99235.0,0.050367]
[1734054719150,0.10076988,99236.0,99235.0,0.050367]
[1734054719852,0.001,99236.0,99235.0,0.050367]
[1734054722562,0.3608,99259.0,99235.0,0.050367]
[1734054722755,0.3608,99259.0,99249.0,0.09707525]
[1734054722948,0.3608,99259.0,99250.0,0.0316]
[1734054722949,0.10077038,99258.0,99250.0,0.0316]
[1734054723151,0.10077038,99258.0,99251.0,1.44]
[1734054723455,0.10077038,99258.0,99250.0,0.0316]
[1734054723456,0.3608,99259.0,99257.0,0.050356]
[1734054724061,0.3608,99259.0,99258.0,0.0331]
[1734054724257,0.01027678,99273.0,99259.0,0.10071]
[1734054724450,0.3608,99278.0,99270.0,0.05035]
[1734054724856,0.10225255,99271.0,99270.0,0.05035]
[1734054725354,0.10225255,99271.0,99251.0,1.490359]
[1734054725555,0.050355,99259.0,99254.0,0.050357]
[1734054725761,0.3608,99261.0,99240.0,0.09707525]
[1734054725954,0.050355,99260.0,99242.0,0.050364]
[1734054726151,0.1510995,99260.0,99255.0,0.050357]
[1734054726547,0.1510995,99260.0,99256.0,0.050357]
[1734054727658,0.050355,99259.0,99256.0,0.050357]
[1734054727864,0.081455,99259.0,99256.0,0.050357]
[1734054728260,0.081455,99259.0,99245.0,0.050362]
[1734054728261,0.05036,99250.0,99245.0,0.050362]
[1734054728459,0.05036,99249.0,99245.0,0.050362]
[1734054728858,0.050363,99244.0,99239.0,0.050365]
[1734054729065,0.3608,99240.0,99239.0,0.050365]
[1734054731257,0.3608,99240.0,99222.0,0.0308]
[1734054731258,0.411165,99240.0,99222.0,0.0308]
[1734054731657,0.411165,99240.0,99236.0,0.050367]
[1734054731851,0.10077191,99239.0,99236.0,0.050367]
[1734054732460,0.10077191,99239.0,99229.0,0.05037]
[1734054732461,0.050366,99237.0,99229.0,0.05037]
[1734054732850,0.36160001,99240.0,99229.0,0.05037]
[1734054732851,0.45867526,99240.0,99229.0,0.05037]
[1734054733051,0.15113535,99236.0,99229.0,0.05037]
[1734054733261,0.050367,99236.0,99229.0,0.05037]
[1734054733561,0.10076835,99235.0,99229.0,0.05037]
[1734054733764,0.10076835,99235.0,99222.0,0.0308]
[1734054734263,0.36164,99240.0,99233.0,0.050368]
[1734054734564,0.3608,99240.0,99238.0,0.050366]
[1734054734972,0.36160001,99259.0,99256.0,0.050357]
[1734054734973,0.45028929,99259.0,99256.0,0.050357]
[1734054735165,0.3608,99259.0,99257.0,1.490356]
[1734054735368,0.3608,99259.0,99257.0,0.050356]
[1734054735561,0.10076937,99258.0,99257.0,0.050356]
[1734054736072,0.36160001,99259.0,99257.0,0.050356]
[1734054736369,0.3608,99259.0,99257.0,0.050356]
[1734054736559,0.3608,99259.0,99258.0,0.04407572]
[1734054736755,0.3608,99259.0,99257.0,0.050356]
[1734054737264,0.3608,99259.0,99258.0,0.0440752]
[1734054737470,0.00080001,99266.0,99265.0,0.050352]
[1734054737670,0.00151211,99271.0,99270.0,0.05035]
[1734054738472,0.00151211,99271.0,99270.0,0.09441878]
[1734054738667,0.05035,99270.0,99261.0,0.050354]
[1734054738876,0.3608,99262.0,99261.0,0.050354]
[1734054739770,0.3608,99262.0,99261.0,0.09442799]
[1734054740457,0.44959237,99262.0,99261.0,0.050354]
[1734054740661,0.55033636,99262.0,99261.0,0.050354]
[1734054741073,0.46154399,99262.0,99261.0,0.050354]
[1734054741661,0.46154399,99262.0,99243.0,0.3608]
[1734054741864,0.08880039,99257.0,99256.0,0.050357]
[1734054742064,0.050354,99261.0,99256.0,0.050357]
[1734054742363,0.36160001,99262.0,99250.0,0.09707525]
[1734054742666,0.08879183,99259.0,99258.0,0.050356]
[1734054743176,0.08879183,99260.0,99258.0,0.050356]
[1734054743568,0.08879183,99261.0,99260.0,0.050355]
[1734054743870,0.00151211,99271.0,99260.0,0.050355]
[1734054743871,0.08879183,99264.0,99260.0,0.050355]
[1734054744070,0.08879183,99264.0,99250.0,0.09707525]
[1734054744071,0.08879183,99266.0,99265.0,0.050352]
[1734054744269,0.00151211,99271.0,99270.0,0.05035]
[1734054744670,0.00151211,99271.0,99270.0,0.09442149]
[1734054745472,0.00151211,99271.0,99270.0,0.09441841]
[1734054745670,0.00151211,99271.0,99270.0,0.45521841]
[1734054745875,0.00151211,99271.0,99261.0,0.3608]
[1734054746073,0.3608,99267.0,99254.0,0.24014354]
[1734054746273,0.3608,99267.0,99255.0,0.04406687]
[1734054746471,0.3608,99267.0,99265.0,0.050352]
[1734054747878,0.3608,99267.0,99266.0,0.04407142]
[1734054748781,0.3608,99267.0,99265.0,0.050352]
[1734054749172,0.050355,99259.0,99251.0,0.050359]
[1734054749370,0.10073891,99266.0,99242.0,0.3608]
[1734054749371,0.3608,99257.0,99252.0,0.04407624]
[1734054749575,0.411156,99257.0,99254.0,0.050358]
[1734054749874,0.3608,99257.0,99255.0,0.04407624]
[1734054750079,0.3608,99257.0,99254.0,0.050358]
[1734054750781,0.3608,99257.0,99255.0,0.050357]
[1734054752576,0.08879183,99259.0,99250.0,0.18063528]
[1734054752778,0.08879183,99259.0,99254.0,0.050358]
[1734054752976,0.050354,99261.0,99256.0,0.050357]
[1734054752977,0.08879183,99260.0,99256.0,0.050357]
[1734054753178,0.3608,99257.0,99256.0,0.050357]
[1734054755074,0.3608,99257.0,99248.0,1.62063528]
[1734054755268,0.3608,99257.0,99248.0,1.44]
[1734054755269,0.050359,99251.0,99248.0,1.44]
[1734054756974,0.08879183,99253.0,99248.0,1.44]
[1734054757175,0.05036,99249.0,99248.0,1.44]
[1734054757373,0.05036,99249.0,99244.0,0.050363]
[1734054757569,0.05036,99249.0,99247.0,0.050361]
[1734054758379,0.050363,99243.0,99240.0,0.050364]
[1734054758575,0.050363,99243.0,99241.0,0.04408032]
[1734054758771,0.050363,99243.0,99240.0,0.050364]
[1734054758975,0.050363,99243.0,99241.0,0.09444485]
[1734054759175,0.050363,99243.0,99242.0,0.04408085]
[1734054760084,0.3608,99248.0,99244.0,0.050363]
[1734054760380,0.10076328,99246.0,99244.0,0.050363]
[1734054760882,0.3608,99248.0,99246.0,0.050361]
[1734054761478,0.411161,99248.0,99246.0,0.050361]
[1734054762583,0.3608,99248.0,99246.0,0.23099628]
[1734054762785,0.3608,99248.0,99246.0,0.050361]
[1734054763175,0.3608,99248.0,99246.0,0.23099628]
[1734054763375,0.3608,99248.0,99246.0,0.050361]
[1734054764285,0.3608,99248.0,99233.0,1.44]
[1734054764286,0.050363,99244.0,99243.0,0.18063528]
[1734054765088,0.050363,99244.0,99237.0,0.24014354]
[1734054765477,0.050363,99244.0,99243.0,0.18086473]
[1734054765682,0.050363,99244.0,99237.0,0.24014354]
[1734054767484,0.050363,99244.0,99243.0,0.18085491]
[1734054767788,0.050363,99244.0,99242.0,0.18085491]
[1734054768484,0.050363,99244.0,99243.0,0.18085491]
[1734054769779,0.050363,99244.0,99241.0,0.18085491]
[1734054770080,0.06068975,99244.0,99241.0,0.18085491]
[1734054770680,0.06068975,99244.0,99240.0,0.18085491]
[1734054770986,0.06068975,99244.0,99241.0,0.18085491]
[1734054771580,0.050363,99243.0,99241.0,0.18085491]
[1734054771884,0.050363,99243.0,99242.0,0.18085491]
[1734054772079,0.050363,99243.0,99236.0,0.050367]
[1734054772475,0.050363,99243.0,99242.0,0.18084653]
[1734054773287,0.050363,99243.0,99237.0,0.050366]
[1734054774179,0.01032675,99244.0,99242.0,0.18084814]
[1734054774378,0.01032675,99244.0,99243.0,0.18084814]
[1734054774379,0.050363,99244.0,99243.0,0.18084814]
[1734054774789,0.050363,99244.0,99242.0,0.18084814]
[1734054775191,0.050363,99244.0,99237.0,0.24014354]
[1734054775392,0.050367,99235.0,99234.0,0.24014354]
[1734054775593,0.050368,99233.0,99231.0,0.24014354]
[1734054775893,0.050369,99231.0,99230.0,0.24014354]
[1734054776092,0.0302,99238.0,99230.0,0.24014354]
[1734054776285,0.1309714,99238.0,99237.0,0.18098584]
[1734054776487,0.050366,99238.0,99237.0,0.18098584]
[1734054776687,0.1511374,99238.0,99237.0,0.18098584]
[1734054777090,0.16133089,99238.0,99237.0,0.18098584]
[1734054777390,0.050368,99234.0,99232.0,0.24014354]
[1734054777596,0.01019349,99238.0,99232.0,0.24014354]
[1734054777891,0.41196601,99239.0,99236.0,0.050367]
[1734054778087,0.411166,99239.0,99236.0,0.050367]
[1734054778693,0.08907157,99237.0,99236.0,0.050367]
[1734054779090,0.41196601,99239.0,99236.0,0.050367]
[1734054779295,0.42115859,99239.0,99236.0,0.050367]
[1734054779497,0.42115859,99239.0,99233.0,0.24145605]
[1734054779694,0.08908205,99236.0,99234.0,0.050368]
[1734054779898,0.08908205,99237.0,99236.0,0.050367]
[1734054780794,0.36160001,99239.0,99238.0,0.050366]
[1734054780795,0.00080001,99239.0,99238.0,0.050366]
[1734054780994,0.08908205,99244.0,99242.0,0.050363]
[1734054781701,0.08908205,99246.0,99242.0,0.29179599]
[1734054781897,0.13944405,99246.0,99242.0,0.29179599]
[1734054782300,0.13944405,99246.0,99243.0,0.050363]
[1734054782495,0.13944405,99246.0,99243.0,0.29179599]
[1734054783102,0.13944405,99246.0,99243.0,0.24143299]
[1734054783103,0.050363,99245.0,99243.0,0.24143299]
[1734054783296,0.050365,99240.0,99239.0,0.24143299]
[1734054783601,0.050365,99240.0,99237.0,0.050366]
[1734054783803,0.050365,99240.0,99239.0,0.24152506]
[1734054784012,0.08911286,99241.0,99239.0,0.29189006]
[1734054784302,0.08911286,99242.0,99240.0,0.24152506]
[1734054784516,0.08911286,99241.0,99240.0,0.24152506]
[1734054784707,0.050364,99242.0,99239.0,0.29189006]
[1734054784906,0.050365,99239.0,99238.0,0.24152506]
[1734054785094,0.050366,99237.0,99235.0,0.24152506]
[1734054785301,0.050367,99235.0,99233.0,0.24152506]
[1734054785499,0.050368,99233.0,99232.0,0.24152506]
[1734054785705,0.050368,99233.0,99231.0,0.24154866]
[1734054786009,0.050368,99233.0,99230.0,0.05037]
[1734054786010,0.050368,99233.0,99232.0,0.24154866]
[1734054786196,0.050368,99233.0,99231.0,0.24154866]
[1734054786506,0.3608,99239.0,99233.0,0.050368]
[1734054786507,0.08911424,99235.0,99233.0,0.050368]
[1734054786707,0.08911424,99235.0,99220.0,0.45787525]
[1734054786708,0.08911424,99238.0,99234.0,0.0332]
[1734054786905,0.36160001,99239.0,99237.0,0.050366]
[1734054787129,0.3608,99239.0,99237.0,0.050366]
[1734054787408,0.36168001,99247.0,99246.0,0.050362]
[1734054787594,0.09917668,99251.0,99246.0,0.24150421]
[1734054787595,0.08911424,99251.0,99246.0,0.24150421]
[1734054787798,0.08911424,99255.0,99253.0,0.050358]
[1734054787993,0.08911424,99256.0,99254.0,0.0332]
[1734054789004,0.08911424,99255.0,99254.0,0.0332]
[1734054789194,0.08911424,99255.0,99254.0,0.2142723]
[1734054789600,0.08911424,99255.0,99254.0,0.1810723]
[1734054789897,0.050358,99254.0,99252.0,0.1810723]
[1734054790098,0.050358,99254.0,99249.0,0.1810723]
[1734054790099,0.050359,99251.0,99249.0,0.1810723]
[1734054790319,0.0646,99254.0,99247.0,0.1810723]
[1734054790320,0.05036,99250.0,99247.0,0.1810723]
[1734054790610,0.3608,99248.0,99246.0,0.1810723]
[1734054790909,0.3608,99248.0,99239.0,1.44]
[1734054790910,0.3608,99248.0,99243.0,0.1810723]
[1734054791098,0.08909632,99245.0,99243.0,0.1810723]
[1734054791300,0.08909632,99245.0,99244.0,0.1810723]
[1734054791508,0.08909632,99246.0,99239.0,1.73238921]
[1734054791805,0.13945832,99246.0,99244.0,0.18108943]
[1734054792208,0.08909632,99245.0,99244.0,0.18108943]
[1734054792505,0.050362,99246.0,99239.0,1.68206421]
[1734054792802,0.08910212,99244.0,99240.0,0.24150421]
[1734054793004,0.08910212,99245.0,99242.0,0.050363]
[1734054793308,0.08910212,99245.0,99243.0,0.050363]
[1734054793807,0.08910212,99247.0,99243.0,0.24150421]
[1734054794007,0.01012504,99258.0,99239.0,1.44]
[1734054794008,0.08910212,99250.0,99246.0,0.24150421]
[1734054794303,0.08910212,99250.0,99239.0,1.44]
[1734054794304,0.08910212,99254.0,99252.0,0.050359]
[1734054794501,0.08910212,99254.0,99253.0,0.1810717]
[1734054795304,0.36160001,99257.0,99256.0,0.050357]
[1734054795507,0.3608,99257.0,99256.0,0.23140851]
[1734054795703,0.3608,99257.0,99256.0,0.27548326]
[1734054795908,0.3608,99257.0,99256.0,0.23140851]
[1734054796205,0.3608,99257.0,99256.0,0.050357]
[1734054796408,0.0891211,99261.0,99254.0,0.3608]
[1734054796612,0.36160001,99268.0,99267.0,0.050351]
[1734054796805,0.3608,99268.0,99267.0,0.050351]
[1734054797018,0.3608,99268.0,99267.0,0.09442484]
[1734054797402,0.36168001,99281.0,99267.0,0.40487384]
[1734054797403,0.45080111,99281.0,99267.0,0.40487384]
[1734054797710,0.08908447,99285.0,99280.0,0.411145]
[1734054797909,0.08908447,99286.0,99280.0,0.411145]
[1734054798108,0.00094,99293.0,99281.0,0.0306]
[1734054798109,0.08908447,99292.0,99281.0,0.0306]
[1734054798610,0.00094,99293.0,99281.0,0.0306]
[1734054798611,0.09002447,99293.0,99281.0,0.0306]
[1734054799004,0.08908447,99292.0,99281.0,0.0306]
[1734054799204,0.00094,99293.0,99281.0,0.0306]
[1734054800112,0.00094,99293.0,99292.0,0.050338]
[1734054801415,0.00999145,99303.0,99299.0,0.050335]
[1734054801612,0.10202244,99308.0,99301.0,0.050334]
[1734054801806,0.10071254,99302.0,99298.0,0.3608]
[1734054802115,0.09154472,99308.0,99302.0,0.050333]
[1734054802516,0.10070037,99307.0,99302.0,0.050333]
[1734054803005,0.10070037,99307.0,99298.0,0.3608]
[1734054803006,0.050333,99304.0,99298.0,0.3608]
[1734054803210,0.10070037,99307.0,99300.0,0.050334]
[1734054803409,0.050331,99306.0,99300.0,0.050334]
[1734054803609,0.15103137,99306.0,99300.0,0.050334]
[1734054803910,0.04121472,99308.0,99298.0,0.3608]
[1734054804218,0.04121472,99308.0,99303.0,0.050332]
[1734054804219,0.10070189,99305.0,99303.0,0.050332]
[1734054804418,0.04121472,99308.0,99305.0,0.050332]
[1734054804714,0.10070189,99307.0,99306.0,0.050331]
[1734054805106,0.050328,99312.0,99306.0,0.050331]
[1734054805318,0.10069834,99311.0,99306.0,0.050331]
[1734054805618,0.050328,99312.0,99309.0,0.050329]
[1734054805820,0.10069834,99310.0,99299.0,0.050335]
[1734054806003,0.10069834,99310.0,99298.0,0.3608]
[1734054806206,0.050328,99312.0,99306.0,0.050331]
[1734054806410,0.050328,99312.0,99298.0,0.3608]
[1734054806411,0.10069428,99309.0,99298.0,0.3608]
[1734054806611,0.10069428,99309.0,99307.0,0.050331]
[1734054806815,0.00080001,99337.0,99318.0,0.050325]
[1734054807038,0.07003939,99345.0,99331.0,0.050319]
[1734054807320,0.45787525,99350.0,99331.0,0.411119]
[1734054807910,0.3608,99350.0,99331.0,0.411119]
[1734054809012,0.01011355,99351.0,99331.0,0.411119]
[1734054809210,0.0319,99359.0,99331.0,0.411119]
[1734054809516,0.10067299,99350.0,99349.0,0.05031]
[1734054809715,0.10067299,99350.0,99346.0,0.3608]
[1734054809909,0.0319,99359.0,99353.0,0.050307]
[1734054810108,0.04214473,99359.0,99353.0,0.050307]
[1734054810318,0.10065475,99358.0,99353.0,0.050307]
[1734054811913,0.10065475,99358.0,99346.0,0.3608]
[1734054811914,0.10065475,99358.0,99354.0,0.050307]
[1734054812711,0.10065475,99358.0,99354.0,0.411107]
[1734054813420,0.10065475,99358.0,99355.0,0.050306]
[1734054813609,0.10065475,99358.0,99356.0,0.050306]
[1734054817327,0.10065475,99358.0,99357.0,0.3608]
[1734054817625,0.050306,99357.0,99350.0,0.050309]
[1734054818029,0.01024473,99359.0,99353.0,0.050307]
[1734054818324,0.01962968,99361.0,99346.0,0.3608]
[1734054818325,0.1006507,99356.0,99354.0,0.050307]
[1734054818525,0.1006507,99356.0,99346.0,0.3608]
[1734054818526,0.01008858,99360.0,99355.0,0.3608]
[1734054818827,0.050324,99321.0,99313.0,0.050327]
[1734054819029,0.3608,99326.0,99312.0,0.3608]
[1734054819232,0.050325,99319.0,99315.0,0.050327]
[1734054819725,0.050325,99319.0,99317.0,0.050325]
[1734054819920,0.10064665,99318.0,99317.0,0.050325]
[1734054823534,0.37079033,99330.0,99328.0,0.05032]
[1734054823829,0.37079033,99330.0,99315.0,0.3608]
[1734054823830,0.10068719,99329.0,99323.0,0.050323]
[1734054824022,0.10068719,99329.0,99324.0,1.44]
[1734054824419,0.10068719,99329.0,99326.0,0.050321]
[1734054825123,0.050321,99326.0,99324.0,1.44]
[1734054825823,0.050318,99332.0,99324.0,1.44]
[1734054826329,0.10067958,99331.0,99324.0,1.44]
[1734054826721,0.3608,99334.0,99332.0,0.050318]
[1734054827324,0.10067147,99333.0,99332.0,0.050318]
[1734054827536,0.3608,99334.0,99332.0,0.050318]
[1734054828220,0.3608,99342.0,99341.0,0.050313]
[1734054828630,0.08908447,99344.0,99335.0,0.3608]
[1734054828819,0.08908447,99349.0,99348.0,0.05031]
[1734054829025,0.08908447,99350.0,99349.0,0.050309]
[1734054829230,0.08888085,99352.0,99349.0,0.050309]
[1734054829428,0.10066489,99350.0,99349.0,0.050309]
[1734054829728,0.36164,99353.0,99349.0,0.050309]
[1734054830235,0.08972085,99353.0,99349.0,0.050309]
[1734054830526,0.08888085,99354.0,99349.0,0.050309]
[1734054830727,0.04297686,99361.0,99349.0,0.050309]
[1734054830728,0.08888085,99356.0,99349.0,0.050309]
[1734054831028,0.13918585,99358.0,99349.0,0.050309]
[1734054831232,0.08888085,99357.0,99349.0,0.050309]
[1734054831433,0.08888085,99356.0,99349.0,0.050309]
[1734054832227,0.08888085,99355.0,99349.0,0.050309]
[1734054832620,0.08888085,99354.0,99349.0,0.050309]
[1734054832831,0.050307,99354.0,99349.0,0.050309]
[1734054833034,0.08888085,99353.0,99349.0,0.050309]
[1734054833234,0.09039146,99351.0,99349.0,0.050309]
[1734054833529,0.00151061,99351.0,99349.0,0.050309]
[1734054834225,0.09039146,99351.0,99349.0,0.050309]
[1734054834429,0.08888085,99350.0,99349.0,0.050309]
[1734054835030,0.09039146,99351.0,99349.0,0.050309]
[1734054835231,0.08901394,99350.0,99349.0,0.050309]
[1734054835729,0.00151061,99351.0,99349.0,0.050309]
[1734054840432,0.08902773,99350.0,99349.0,0.050309]
[1734054840627,0.00151061,99351.0,99349.0,0.050309]
[1734054841329,0.08902887,99350.0,99349.0,0.050309]
[1734054841631,0.0890299,99350.0,99349.0,0.050309]
[1734054841940,0.00151061,99351.0,99349.0,0.050309]
[1734054842134,0.1187621,99355.0,99347.0,0.0319]
[1734054842135,0.1187621,99355.0,99350.0,0.050309]
[1734054842435,0.10065475,99354.0,99351.0,0.050308]
[1734054843736,0.10065475,99354.0,99347.0,0.0319]
[1734054843737,0.10065475,99354.0,99352.0,0.050308]
[1734054843938,0.18970917,99354.0,99352.0,0.050308]
[1734054844237,0.08905442,99357.0,99348.0,0.0309]
[1734054844547,0.08905442,99357.0,99356.0,0.3608]
[1734054844548,0.08905601,99357.0,99356.0,0.3608]
[1734054844732,0.08905601,99357.0,99356.0,0.411106]
[1734054845131,0.10064766,99357.0,99356.0,0.411106]
[1734054845541,0.00997686,99361.0,99356.0,0.3608]
[1734054845542,0.08905749,99359.0,99356.0,0.3608]
[1734054845739,0.08905749,99359.0,99358.0,0.050305]
[1734054846036,0.1187621,99364.0,99360.0,0.050304]
[1734054846339,0.1187621,99364.0,99356.0,0.3608]
[1734054846533,0.1187621,99364.0,99357.0,0.050305]
[1734054846534,0.08905599,99358.0,99357.0,0.050305]
[1734054847232,0.18970264,99358.0,99357.0,0.050305]
[1734054848136,0.10064665,99358.0,99357.0,0.050305]
[1734054848641,0.08905599,99359.0,99357.0,0.050305]
[1734054848832,0.10064665,99358.0,99357.0,0.050305]
[1734054855143,0.10064665,99358.0,99357.0,1.490305]
[1734054855344,0.08905599,99362.0,99357.0,1.490305]
[1734054855650,0.032,99382.0,99357.0,1.490305]
[1734054855651,0.1187621,99381.0,99373.0,0.050297]
[1734054855841,0.01018343,99382.0,99380.0,0.411094]
[1734054856145,0.0322,99391.0,99390.0,0.050289]
[1734054856349,0.0322,99391.0,99390.0,0.411089]
[1734054856638,0.04216404,99391.0,99390.0,0.411089]
[1734054856840,0.11059094,99391.0,99390.0,0.411089]
[1734054858137,0.1006269,99391.0,99390.0,0.411089]
[1734054858336,0.0306,99399.0,99398.0,0.050285]
[1734054858537,0.0322,99405.0,99398.0,0.411085]
[1734054859045,0.10061323,99399.0,99398.0,0.411085]
[1734054861939,0.15089723,99399.0,99398.0,0.3608]
[1734054862142,0.15089723,99399.0,99391.0,0.050288]
[1734054862143,0.10061323,99399.0,99391.0,0.050288]
[1734054862347,0.10061323,99399.0,99380.0,0.3608]
[1734054862539,0.10061323,99399.0,99397.0,0.050285]
[1734054875761,0.10061323,99399.0,99398.0,0.3608]
[1734054878060,0.11004774,99400.0,99398.0,0.3608]
[1734054878061,0.1,99400.0,99399.0,0.050284]
[1734054878367,0.1,99400.0,99399.0,0.080684]
[1734054878858,0.1,99400.0,99399.0,1.520684]
[1734054879060,0.36230979,99413.0,99412.0,0.050278]
[1734054879449,0.00150979,99413.0,99412.0,0.411078]
[1734054879650,0.063,99433.0,99412.0,0.411078]
[1734054879855,0.063,99433.0,99431.0,0.050268]
[1734054880361,0.10057124,99432.0,99431.0,0.050268]
[1734054881058,0.064,99446.0,99445.0,0.050261]
[1734054881456,0.1187621,99457.0,99439.0,0.3608]
[1734054881660,0.01013192,99456.0,99455.0,0.050256]
[1734054881961,0.0315,99457.0,99455.0,0.050256]
[1734054882155,0.10057175,99456.0,99455.0,0.050256]
[1734054884062,0.00150889,99459.0,99458.0,0.050254]
[1734054884656,0.10205637,99459.0,99458.0,0.050254]
[1734054887161,0.00150889,99459.0,99458.0,0.050254]
[1734054887361,0.3608,99467.0,99448.0,1.44]
[1734054887662,0.3608,99467.0,99466.0,0.05025]
[1734054889269,0.46133636,99467.0,99437.0,0.0324]
[1734054889486,0.3608,99449.0,99446.0,0.05026]
[1734054889661,0.3608,99449.0,99447.0,0.05026]
[1734054890560,0.10055506,99448.0,99436.0,0.3608]
[1734054890871,0.10055506,99448.0,99429.0,0.0332]
[1734054891572,0.00989804,99449.0,99442.0,0.050262]
[1734054891873,0.10055961,99447.0,99442.0,0.050262]
[1734054892078,0.050259,99450.0,99442.0,0.050262]
[1734054892377,0.050262,99443.0,99436.0,0.050265]
[1734054892563,0.3608,99450.0,99436.0,0.050265]
[1734054892870,0.1005586,99442.0,99441.0,0.050263]
[1734054893086,0.41185901,99450.0,99430.0,1.53707525]
[1734054893270,0.411059,99450.0,99444.0,0.050261]
[1734054893571,0.411059,99450.0,99446.0,0.05026]
[1734054893774,0.10056163,99449.0,99446.0,0.05026]
[1734054894071,0.00080001,99450.0,99449.0,0.050259]
[1734054894269,0.04408863,99459.0,99458.0,0.050254]
[1734054894461,0.04324863,99459.0,99458.0,0.050254]
[1734054894872,0.14380419,99459.0,99458.0,0.050254]
[1734054895364,0.13355556,99459.0,99453.0,0.050257]
[1734054895568,0.13355556,99459.0,99454.0,0.050256]
[1734054895968,0.13355556,99459.0,99449.0,1.44052]
[1734054896162,0.13355556,99459.0,99457.0,0.050255]
[1734054896365,0.10055556,99459.0,99457.0,0.050255]
[1734054896769,0.37102869,99462.0,99460.0,0.050253]
[1734054897271,0.10054647,99461.0,99460.0,0.050253]
[1734054899273,0.10054647,99461.0,99453.0,0.050257]
[1734054899481,0.3608,99457.0,99453.0,0.050257]
[1734054899777,0.01022869,99462.0,99441.0,1.44]
[1734054899964,0.050252,99464.0,99457.0,0.050255]
[1734054900367,0.10055152,99463.0,99457.0,0.050255]
[1734054900776,0.10055152,99463.0,99441.0,1.44]
[1734054900971,0.10055152,99463.0,99460.0,0.050253]
[1734054901276,0.38164252,99466.0,99459.0,0.050254]
[1734054901469,0.10055101,99462.0,99459.0,0.050254]
[1734054901671,0.38164252,99466.0,99459.0,0.050254]
[1734054901871,0.10055101,99461.0,99459.0,0.050254]
[1734054902168,0.39146782,99466.0,99459.0,0.050254]
[1734054902367,0.050254,99459.0,99453.0,0.050257]
[1734054902564,0.3608,99456.0,99453.0,0.050257]
[1734054902767,0.3608,99456.0,99454.0,0.050256]
[1734054902976,0.10054293,99455.0,99454.0,0.050256]
[1734054903176,0.050257,99453.0,99448.0,0.050779]
[1734054903477,0.050257,99453.0,99448.0,0.050259]
[1734054903864,0.10054798,99452.0,99449.0,0.050259]
[1734054904074,0.10054798,99452.0,99450.0,0.050258]
[1734054904477,0.3608,99456.0,99442.0,0.050262]
[1734054904778,0.10055253,99451.0,99450.0,0.050258]
[1734054905074,0.3608,99456.0,99450.0,0.050258]
[1734054905279,0.10055253,99451.0,99450.0,0.050258]
[1734054905671,0.41185601,99456.0,99450.0,0.050258]
[1734054905869,0.10055253,99455.0,99450.0,0.050258]
[1734054906076,0.411056,99456.0,99451.0,0.050258]
[1734054906077,0.42168232,99456.0,99451.0,0.050258]
[1734054906277,0.00982631,99456.0,99454.0,0.050256]
[1734054906476,0.10055051,99455.0,99454.0,0.050256]
[1734054907078,0.16872642,99459.0,99454.0,0.050256]
[1734054907273,0.3608,99464.0,99450.0,0.050258]
[1734054907274,0.11847242,99457.0,99450.0,0.050258]
[1734054907578,0.050254,99458.0,99447.0,0.09707525]
[1734054907579,0.11847242,99458.0,99447.0,0.09707525]
[1734054907777,0.11847242,99458.0,99442.0,0.050262]
[1734054907778,0.11847242,99458.0,99457.0,0.050255]
[1734054908181,0.10054849,99458.0,99457.0,0.050255]
[1734054908476,0.10054849,99458.0,99457.0,1.490255]
[1734054908477,0.21953376,99458.0,99457.0,1.490255]
[1734054908680,0.10054849,99458.0,99457.0,0.050255]
[1734054913788,0.21965525,99458.0,99457.0,0.050255]
[1734054914188,0.10054849,99458.0,99457.0,0.050255]
[1734054914587,0.11910676,99459.0,99457.0,0.050255]
[1734054914783,0.10054545,99458.0,99457.0,0.050255]
[1734054915489,0.0101298,99461.0,99457.0,0.050255]
[1734054915789,0.10054545,99458.0,99457.0,0.050255]
[1734054915995,0.050252,99463.0,99457.0,0.050255]
[1734054916189,0.19834253,99463.0,99457.0,0.050255]
[1734054916498,0.10054545,99462.0,99457.0,0.050255]
[1734054916680,0.19834253,99463.0,99458.0,0.050254]
[1734054916882,0.10054293,99462.0,99452.0,0.0306]
[1734054917179,0.14809053,99459.0,99444.0,0.17956819]
[1734054917381,0.050259,99449.0,99445.0,0.050261]
[1734054917583,0.11902116,99448.0,99447.0,0.05026]
[1734054917781,0.3608,99454.0,99449.0,0.050259]
[1734054917983,0.50889053,99454.0,99449.0,0.050259]
[1734054918193,0.55914753,99454.0,99449.0,0.050259]
[1734054918494,0.15080852,99453.0,99449.0,0.050259]
[1734054919086,0.050257,99452.0,99449.0,0.050259]
[1734054919693,0.15081003,99451.0,99449.0,0.050259]
[1734054920089,0.050258,99451.0,99449.0,0.050259]
[1734054920283,0.10055203,99450.0,99449.0,0.050259]
[1734054921595,0.01111961,99454.0,99453.0,0.050257]
[1734054921891,0.0102396,99454.0,99453.0,1.490257]
[1734054922093,0.10055354,99454.0,99453.0,1.490257]
[1734054922396,0.050253,99461.0,99453.0,1.44]
[1734054922595,0.050253,99461.0,99457.0,0.050255]